Cogmind - Beta 17 @@@ ROGUE MODE // 2026.08.06 @ 23:46:33 Player: LandRaider Result: Destroyed by G-34 Mercenary with Small Laser Performance ------------- Evolutions (1) 500 Regions Visited (3) 600 Robots Destroyed (10) 50 Value Destroyed (244) 244 Prototype IDs (3) 60 Alien Tech Used (0) 0 Bonus (0) 0 TOTAL SCORE: 1454 Bonus ------- None Cogmind --------- Core Integrity 0/400 Matter 252/300 Energy 280/280 System Corruption 0% Temperature Cool (12) Movement Core (400) Ox7 Location -9/Mines Parts ------- > --- POWER (1) -------- Cooled Ion Engine > --- PROPULSION (2) --- (None) > --- UTILITY (4) ------ Medium Storage Unit Terrain Scanner Targeting Computer Utility Shielding > --- WEAPON (2) ------- Mining Claw > --- INVENTORY (10) --- Light Deuterium Engine Light Deuterium Engine Compact Wheel Compact Wheel Weight Redist. System Melee Analysis Suite Core Shielding Datajack Blade Saw Peak State ------------ > --- POWER ------------ Light Deuterium Engine > --- PROPULSION ------- Advanced Treads Advanced Treads > --- UTILITY ---------- Medium Storage Unit Terrain Scanner Targeting Computer Utility Shielding > --- WEAPON ----------- Light Assault Rifle Blade Saw > --- INVENTORY -------- Light Deuterium Engine Light Deuterium Engine Light Deuterium Engine Advanced Treads Advanced Treads Compact Wheel Compact Wheel Small Storage Unit Light Assault Rifle Mining Claw [Rating: 19] Favorites ----------- Power Light Deuterium Engine Engine Light Deuterium Engine Propulsion Compact Wheel Treads Advanced Treads Wheel Compact Wheel Utility Terrain Scanner Device Terrain Scanner Storage Medium Storage Unit Processor Targeting Computer Protection Utility Shielding Weapon Light Assault Rifle Ballistic Gun Light Assault Rifle Slashing Weapon Mining Claw Build | -11 -10 -9 -9 ------- Run | Yrd Mat Mat Min Slots Evolved 2 | . . 2 . Power . | . . . . Propulsion . | . . . . Utility 2 | . . 2 . Weapon . | . . . . Parts Attached 22 | 6 3 13 . Power 5 | 1 . 4 . Engine 5 | 1 . 4 . Core . | . . . . Reactor . | . . . . Propulsion 6 | 2 . 4 . Treads 4 | . . 4 . Leg . | . . . . Wheel 2 | 2 . . . Hover . | . . . . Flight . | . . . . Utility 6 | 1 2 3 . Device 2 | . 2 . . Storage 2 | 1 . 1 . Processor 1 | . . 1 . Hackware . | . . . . Protection 1 | . . 1 . Artifact . | . . . . Weapon 5 | 2 1 2 . Energy Gun . | . . . . Energy Cannon . | . . . . Ballistic Gun 3 | 2 1 . . Ballistic Cannon . | . . . . Launcher . | . . . . Special Weapon . | . . . . Impact Weapon . | . . . . Slashing Weapon 2 | . . 2 . Piercing Weapon . | . . . . Special Melee Weapon . | . . . . Unidentified Prototypes 1 | . . 1 . Parts Lost 8 | . 3 2 3 Power 3 | . 1 2 . Propulsion 2 | . . . 2 Utility 1 | . 1 . . Weapon 2 | . 1 . 1 Highest Loss Streak 3 | . 3 1 2 To Critical Strikes . | . . . . Average Backups 7 | 1 6 9 9 Power 1 | . 1 2 2 Propulsion 2 | . 2 3 2 Utility 1 | . 1 1 3 Weapon 1 | . 1 1 1 Tool/Special . | . . . . Unused Backups 11 | . 1 4 6 Power 2 | . . 1 1 Propulsion 4 | . 1 1 2 Utility 2 | . . . 2 Weapon 1 | . . 1 . Tool/Special 2 | . . 1 1 Average Slot Usage (%) 91 | . 92 90 88 Engine 9 | . 9 9 11 Treads 9 | . . 18 12 Wheel 14 | . 28 2 . Device 11 | . 11 11 11 Storage 12 | . 14 11 11 Processor 5 | . . 10 11 Protection 4 | . . 8 11 Ballistic Gun 20 | . 28 14 9 Slashing Weapon 3 | . . 5 11 Peak Build Rating 19 | 6 7 19 16 Average Rating 10 | 4 6 15 12 On Entrance 6 | . 6 6 15 Avg Prop Armor Cover (%) . | . . . . Naked Turns . | . . . . Heaviest Build 23 | 13 14 22 23 Greatest Support 44 | 32 32 44 22 Greatest Overweight (x) 1 | . . . 1 Average Overweight (x) . | . . . 1 Largest Inventory Capacity 10 | 8 8 10 10 Average Capacity 8 | 6 8 9 10 Most Carried 10 | 4 8 10 9 Average Carried 7 | 2 6 9 9 Final Capacity 10 | 8 8 10 10 Final Carried 10 | 4 7 10 9 Class Distribution -------------------- 100% | Mutant Dominant Class ---------------- Mutant | -10/Materials Mutant | -9/Materials Mutant | -9/Mines Resources | -11 -10 -9 -9 ----------- Run | Yrd Mat Mat Min Matter Collected 460 | 176 45 239 . Remotely . | . . . . Salvage Created 328 | . 45 239 44 Parts 17 | . 2 14 1 Haulers Intercepted 1 | . . 1 . Recyclers Shooed 1 | . . 1 . Parts Field Recycled . | . . . . Retrieved Matter . | . . . . Parts Self-Destructed . | . . . . Prevented . | . . . . Parts Restored . | . . . . Kills | -11 -10 -9 -9 ------- Run | Yrd Mat Mat Min Combat Hostiles Destroyed 8 | . 3 4 1 Melee 4 | . . 3 1 Guns 4 | . 3 1 . Classes Destroyed 5 | . 1 4 . Hauler 1 | . . 1 . Watcher 1 | . . 1 . Swarmer 3 | . 3 . . Grunt 4 | . . 3 1 Duelist 1 | . . 1 . Best Kill Streak 2 | . 2 2 1 Combat Bots Only 2 | . 2 2 1 Max Kills in Single Turn 1 | . 1 1 1 Gunslinging . | . . . . Exploded . | . . . . Melee 1 | . . 1 1 Uniques/NPCs Destroyed . | . . . . Combat | -11 -10 -9 -9 -------- Run | Yrd Mat Mat Min Hostile Shots Fired 196 | . 54 102 40 Missed 42 | . 11 23 8 Hits 154 | . 43 79 32 Melee 8 | . . 8 . Projectile 146 | . 43 71 32 Critical Strikes 6 | . 1 5 . Damage Taken 1755 | . 347 999 409 Core 472 | . 65 295 112 Absorbed by Shields . | . . . . Redirected to Shielding 28 | . . 17 11 Core Remaining (%) 87 | 100 74 . . Volleys Fired 49 | . 15 23 11 Largest 2 | . 2 2 1 Hottest 40 | . 40 40 20 Shots Fired 77 | . 28 38 11 Gun 77 | . 28 38 11 Cannon . | . . . . Launcher . | . . . . Special . | . . . . Kinetic 77 | . 28 38 11 Thermal . | . . . . Explosive . | . . . . Electromagnetic . | . . . . Robot Hit Streak 8 | . 4 8 3 Robot Miss Streak 5 | . 5 3 1 Penetration Max . | . . . . Secondary Targets 1 | . 1 . . Max Gunslinging Chain 1 | . 1 . . Shots Hit Robots 69 | . 12 44 13 Core Hits 22 | . 5 14 3 Critical Kills . | . . . . Critical Parts Destroyed 2 | . . 2 . Critical Strikes 5 | . . 5 . Destroy 2 | . . 2 . Sever 3 | . . 3 . Melee Attacks 35 | . . 28 7 Impact . | . . . . Slashing 35 | . . 28 7 Piercing . | . . . . Sneak Attacks 1 | . . 1 . Combat Hostiles . | . . . . Follow-up Attacks . | . . . . Damage Inflicted 824 | . 128 509 187 Guns 403 | . 128 207 68 Cannons . | . . . . Explosions . | . . . . Melee 421 | . . 302 119 Ramming . | . . . . Kinetic 403 | . 128 207 68 Thermal . | . . . . Explosive . | . . . . Electromagnetic . | . . . . Impact . | . . . . Slashing 421 | . . 302 119 Piercing . | . . . . Highest Corruption . | . . . . Average Corruption . | . . . . Corruption Purged . | . . . . Corruption Blocked . | . . . . Overload Shots . | . . . . Overflow Damage 11 | . . . 11 Projectiles . | . . . . Explosions . | . . . . Melee 11 | . . . 11 Knockbacks . | . . . . Impact . | . . . . Kinetic . | . . . . Secondary . | . . . . Self-Inflicted Damage . | . . . . Shots . | . . . . Rammed . | . . . . Targets Rammed . | . . . . Kicked . | . . . . Crushed . | . . . . Highest Temperature 16 | . . 16 5 Average Temperature 4 | . . 10 2 Received Heat Transfer 546 | . . 321 225 Siege Activations . | . . . . Martial Activations . | . . . . Shielding Activations . | . . . . Robots Disrupted . | . . . . Combat Hostiles . | . . . . Robots Corrupted . | . . . . Combat Hostiles . | . . . . Parts Fried . | . . . . Impact Corruptions . | . . . . Robots Melted . | . . . . Combat Hostiles . | . . . . Parts Melted . | . . . . Heat Transferred . | . . . . Parts Sabotaged . | . . . . Parts Stolen . | . . . . Parts Stripped . | . . . . Power Chain Reactions . | . . . . Alert | -11 -10 -9 -9 ------- Run | Yrd Mat Mat Min Maximum Alert Level . | . . . . Low Security (%) 100 | 100 100 100 100 Level 1 . | . . . . Level 2 . | . . . . Level 3 . | . . . . Level 4 . | . . . . Level 5 . | . . . . High Security . | . . . . Max Security . | . . . . Peak Influence 75 | . 75 45 30 Initial 3 | . . . 3 Average 11 | . 5 18 6 Influence Increases 279 | . 90 159 30 Destroy 0b10 Robot/C 160 | . 60 80 20 Destroy 0b10 Robot/NC 10 | . . 10 . Destroy Leader 44 | . 10 24 10 Successful Hack 18 | . 5 13 . Destroy Structure 2 | . . 2 . Lose Combat Pursuer 45 | . 15 30 . Influence Decreases 279 | . 90 150 39 Entered New Map 6 | . . . 6 Time Decay 165 | . 25 130 10 Lost Part 43 | . . 20 23 Purge Threat 65 | . 65 . . Squads Dispatched 2 | . . 2 . Investigation 1 | . . 1 . Extermination . | . . . . Reinforcement 1 | . . 1 . Assault . | . . . . Garrison . | . . . . Intercept . | . . . . Searches Triggered . | . . . . Construction Impeded . | . . . . Haulers Reinforced . | . . . . Active Scanning Responses . | . . . . Cargo Convoy Interrupts . | . . . . Stealth | -11 -10 -9 -9 --------- Run | Yrd Mat Mat Min Distress Signals 2 | . . 2 . Communications Jammed . | . . . . Distress Signals . | . . . . Times Spotted 27 | . 4 20 3 Peak Tracking Total 10 | . 3 10 3 Tactical Retreats 3 | . 1 2 . Traps | -11 -10 -9 -9 ------- Run | Yrd Mat Mat Min Traps Triggered 1 | . . 1 . Indirectly . | . . . . Trap Hack Attempts . | . . . . Triggered . | . . . . Disarmed . | . . . . Reprogrammed . | . . . . Reused . | . . . . Traps Extracted . | . . . . Installed . | . . . . Triggered . | . . . . Machines | -11 -10 -9 -9 ---------- Run | Yrd Mat Mat Min Machines Disabled . | . . . . Max in Single Turn . | . . . . Machines Repaired . | . . . . Machines Dismantled . | . . . . Machines Sabotaged . | . . . . Overloaded Fab Kills . | . . . . Hacking | -11 -10 -9 -9 --------- Run | Yrd Mat Mat Min Machines Accessed 5 | . 3 2 . Terminals 5 | . 3 2 . Fabricators . | . . . . Repair Stations . | . . . . Recycling Units . | . . . . Scanalyzers . | . . . . Garrison Access . | . . . . Total Hacks 12 | . 7 5 . Successful 8 | . 4 4 . Failed 4 | . 3 1 . Catastrophic . | . . . . Database Lockouts . | . . . . Manual 1 | . . 1 . Terminals 12 | . 7 5 . Fabricators . | . . . . Repair Stations . | . . . . Recycling Units . | . . . . Scanalyzers . | . . . . Garrison Access . | . . . . Terminal Hacks 8 | . 4 4 . Record 3 | . 2 1 . Robot Analysis 1 | . . 1 . Prototype ID Bank 1 | . 1 . . Branch Access Points 1 | . . 1 . Emergency Access Points 1 | . . 1 . Unreport Threat 1 | . 1 . . Fabricator Hacks . | . . . . Repair Station Hacks . | . . . . Recycling Unit Hacks . | . . . . Scanalyzer . | . . . . Garrison Access Hacks . | . . . . Unauthorized Hacks . | . . . . Terminals . | . . . . Fabricators . | . . . . Repair Stations . | . . . . Recycling Units . | . . . . Scanalyzers . | . . . . Garrison Access . | . . . . Data Cores Recovered . | . . . . Used . | . . . . Hacking Detections 5 | . 3 2 . Full Trace Events 1 | . . 1 . Feedback Events . | . . . . Feedback Blocked . | . . . . Robot Schematics Acquired . | . . . . Robots Built . | . . . . Authchips . | . . . . Time . | . . . . Total Robot Build Rating . | . . . . Part Schematics Acquired . | . . . . Parts Built . | . . . . Authchips . | . . . . Time . | . . . . Total Part Build Rating . | . . . . Part Studies Acquired . | . . . . Parts Repaired . | . . . . Time . | . . . . Parts Recycled . | . . . . Recycled Matter . | . . . . Retrieved Matter . | . . . . Retrieved Components . | . . . . Parts Scanalyzed . | . . . . Part Schematics Acquired . | . . . . Parts Damaged . | . . . . Bothacking | -11 -10 -9 -9 ------------ Run | Yrd Mat Mat Min Used RIF Installer . | . . . . Robots Hacked . | . . . . Non-combat . | . . . . Combat . | . . . . Robot Hacks Applied . | . . . . Relay Couplers Released . | . . . . Fabnet Peak Effective % . | . . . . Robots Rewired . | . . . . Allies Hacked . | . . . . Hacks Repelled . | . . . . Allies | -11 -10 -9 -9 -------- Run | Yrd Mat Mat Min Total Allies . | . . . . Largest Group . | . . . . Highest-Rated Group . | . . . . Highest-Rated Ally . | . . . . Total Orders . | . . . . Ally Attacks . | . . . . Total Damage . | . . . . Kills . | . . . . Allies Corrupted . | . . . . Allies Melted . | . . . . Intel | -11 -10 -9 -9 ------- Run | Yrd Mat Mat Min Active Infowar (turns) 748 | . 312 385 51 Sensors 200 | . 200 . . Terrain 548 | . 112 385 51 Robot Analysis Total 1 | . . 1 . Derelict Logs Recovered . | . . . . Drone Launches . | . . . . Drone Recoveries . | . . . . Exploration | -11 -10 -9 -9 ------------- Run | Yrd Mat Mat Min Turns Passed 848 | 41 371 385 51 Spaces Moved 486 | 29 297 156 4 Core 1 | 1 . . . Treads 128 | . . 124 4 Legs . | . . . . Wheels 357 | 28 297 32 . Hover . | . . . . Flight . | . . . . Fastest Speed 50 | 50 100 100 225 Average Speed 112 | 98 100 135 225 Slowest Speed 225 | 100 100 145 225 Overloaded Moves . | . . . . Propulsion Burnouts . | . . . . Robots Hopped . | . . . . Potential Cave-ins . | . . . . Cave-ins Triggered . | . . . . Exploration Rate (%) 20 | 3 50 27 3 Regions Visited 3 Branch Regions 1 Pre-discovered Areas . | . . . . Known Exits Taken 1 | . . 1 . Unknown Exits Taken 2 | 1 1 . . Scrap Searched . | . . . . Spaces Dug 2 | . . 2 . Terrain Destroyed 2 | . . 2 . Melee 2 | . . 2 . Projectile . | . . . . AOE . | . . . . Terrain Rammed . | . . . . Walls Destroyed . | . . . . Machines Disabled . | . . . . Actions | -11 -10 -9 -9 --------- Run | Yrd Mat Mat Min Total 651 | 38 347 243 23 Wait 26 | . 26 . . Move 483 | 28 296 155 4 Hop . | . . . . Pick Up 22 | 4 6 12 . Fast Attach 12 | 6 1 5 . Attach 9 | . 2 6 1 Detach 2 | . . 2 . Swap 4 | . . 4 . Drop 9 | . 1 8 . Fire 49 | . 15 23 11 Melee 35 | . . 28 7 Ram . | . . . . Kick . | . . . . Crush . | . . . . Escape Stasis . | . . . . Rewire . | . . . . Trap . | . . . . Miscellaneous . | . . . . Route ------- -11/Scrapyard -10/Materials (discovered 2 exits: *Mat x2) -9/Materials -9/Mines History --------- Turn | Location | Event 23 | -11/Scrapyard | Discovered new exit (range 16) 42 | -11/Scrapyard | Entered Materials 123 | -10/Materials | Discovered new exit (range 8) 300 | -10/Materials | Build established: Mutant 311 | -10/Materials | Lost 3 parts (1p1u1w) 335 | -10/Materials | Discovered new exit (range 10) 413 | -10/Materials | Entered another Materials area 413 | -9/Materials | Evolved 2 slots: Utility x2 672 | -9/Materials | Identified exit to Mines 726 | -9/Materials | Core integrity fell below 50% 798 | -9/Materials | Entered Mines 821 | -9/Mines | Core integrity fell below 20% 849 | -9/Mines | Destroyed by G-34 Mercenary with Small Laser Last Messages --------------- 00787_ K-01 Serf collects debris. 00787_ Acquired Prototype Engine. 00787_ Identified Cld. Ion Engine. 00787_ Faulty integration triggers meltdown. 00787_ Adv. Treads damaged (-49). 00787_ Med. Storage Unit damaged (-54). 00789_ Machine disabled. 00790_ Acquired Cld. Ion Engine. 00793_ Dropped Sml. Storage Unit. 00794_ Acquired Weight Redist. System. 00795_ U-05 Engineer lays Concrete. LOCATION=MINES GOAL=ESCAPE Something is scanning the area. 00799_ Adv. Treads destroyed. 00812_ Laser Drill disabled. 00828_ G-47 Trooper destroyed. 00835_ Lgt. Assault Rifle destroyed. 00843_ Destroyed Ion Engine. 00845_ Adv. Treads destroyed. Map ----- +----------------------------------------------------+ | ?????????????????????????????????????????????????? | | ?????????????????????????????????????????????????? | | ?????????????????????????????????????????????????? | | ?????????????????????????????????????????????????? | | ?????????????????????????????????????????????????? | | ?????????????????????????????????????????????????? | | ?????????????????????????????????????????????????? | | ?????????????????????????????????????????????????? | | ?????????????????????????????????????????????????? | | ?????????????????????????????????????????????????? | | ?????????????????????????????????????????????????? | | ?????????????????????????????????????????????????? | | ?????????????????????????????????????????????????? | | ????????????????????????? ???????????????????????? | | ?????????????????????????????????????????????????? | | ???????????????????#????? ??????? ???????????????? | | ?????????????????????????? ??????????????????????? | | ???????????????????#?????????????????????????????? | | ?????????????????????????????????????????????????? | | ???????????????#????????#?????#????? ????????????? | | ????????????????????#????????????????????????????? | | ?????????????????????#?########??????????????????? | | ????????????????????#??# #?#????????????????? | | ???????????????????????# """ #???#??????????????? | | ???????????????????????#g""" ########???????????? | | ???????????????????????#=@"" ????????????? | | ?????????????????????#?#% #####??????????????? | | ???????????????????????# g #?????? ???????????? | | ???????????????????????# #????#?????????????? | | ???????????????????????########??????????????????? | | ?????????????? ???????#??????????????????????????? | | ????????????#????????????????????????????????????? | | ?????????????????????????????????#???????????????? | | ???????????????????????#??#??????????????????????? | | ?????????????????????????????????????????????????? | | ???????????????????????#???#?????????????????????? | | ????????????????????????#????????????????????????? | | | | | | | | | | | | | | | | | | | | | | | | | | | +----------------------------------------------------+ Best States ------------- Heat Dissipation 28 Energy Generation 14 Energy Capacity 280 Matter Stores 268 Matter Capacity 300 Sight Range 16 Robot Scan Range 14 Terrain Scan Range 14 Terrain Scan Density 10 Utility Shielding 33 Evasion (%) 40 Targeting Accuracy 5 Recoil Reduction 2 Item Schematics ----------------- None Robot Schematics ------------------ None Fabricated ------------ Nothing Repaired ---------- Nothing Studied --------- None Alien Tech Used ----------------- None Achievements -------------- None Challenges ------------ None Game ------ Seed SniperSkeletonEdition Manual? 0 Play Time 00:12:57 Cumulative 39.8 hours Start 2026.08.06 @ 23:23:05 End 2026.08.06 @ 23:46:33 Sessions 1 Manual Loads 0 Difficulty Rogue Special Mode None Game No. 36 Rogue 34 Adventurer 2 Explorer 0 Win Type - Total 0 Types 0/0/0/0/0/0/0/0/0/0 Lore% 26 Gallery% 25 Achievement% 22 Wizard Run 0 Options --------- Layout 0 ASCII 0 Keyboard 0 Movement Mouse Keybinds 0 Fullscreen 2 Font 24/Smallcaps Map View 76x50 Zoom Use 0% Tactical HUD 1 Map Filters NONE Filters NONE Steam 1 RUN: 1ca21987-1a95-4ee9-8c27-065c5ead776f